Cogmind - Beta 14 @@@ ROGUE MODE // 2024.12.25 @ 08:49:32 Player: blackdogzx Result: Self-destructed Performance ------------- Evolutions (1) 500 Regions Visited (2) 400 Robots Destroyed (14) 70 Value Destroyed (355) 355 Prototype IDs (1) 20 Alien Tech Used (0) 0 Bonus (0) 0 TOTAL SCORE: 1345 Bonus ------- None Cogmind --------- Core Integrity 226/400 Matter 290/300 Energy 100/100 System Corruption 0% Temperature Cool (0) Movement Core (250) Ox4 Location -9/Materials Parts ------- > --- POWER (1) -------- (None) > --- PROPULSION (2) --- (None) > --- UTILITY (4) ------ Heat Sink Small Storage Unit Sensor Array Light Armor Plating > --- WEAPON (2) ------- Particle Cannon > --- INVENTORY (8) ---- Heavy Ion Engine Visual Processing Unit Sensor Array Signal Interpreter Targeting Computer Targeting Computer Peak State ------------ > --- POWER ------------ Heavy Ion Engine > --- PROPULSION ------- Aluminum Leg Aluminum Leg > --- UTILITY ---------- Heat Sink Small Storage Unit Sensor Array Light Armor Plating > --- WEAPON ----------- Medium Laser Particle Cannon > --- INVENTORY -------- Heavy Ion Engine Visual Processing Unit Sensor Array Signal Interpreter Targeting Computer Targeting Computer [Rating: 12] Favorites ----------- Power Heavy Ion Engine Engine Heavy Ion Engine Propulsion Aluminum Leg Leg Aluminum Leg Utility Small Storage Unit Device Sensor Array Storage Small Storage Unit Protection Utility Shielding Weapon Medium Laser Energy Gun Medium Laser Energy Cannon Particle Cannon Ballistic Gun Assault Rifle Build | -11 -10 -9 ------- Run | Yrd Mat Mat Slots Evolved 2 | . . 2 Power . | . . . Propulsion . | . . . Utility 2 | . . 2 Weapon . | . . . Parts Attached 18 | 6 8 4 Power 2 | 1 1 . Engine 2 | 1 1 . Core . | . . . Reactor . | . . . Propulsion 4 | 2 2 . Treads . | . . . Leg 4 | 2 2 . Wheel . | . . . Hover . | . . . Flight . | . . . Utility 6 | 1 2 3 Device 3 | . 1 2 Storage 1 | 1 . . Processor . | . . . Hackware . | . . . Protection 2 | . 1 1 Artifact . | . . . Weapon 6 | 2 3 1 Energy Gun 4 | 2 2 . Energy Cannon 1 | . . 1 Ballistic Gun 1 | . 1 . Ballistic Cannon . | . . . Launcher . | . . . Special Weapon . | . . . Impact Weapon . | . . . Slashing Weapon . | . . . Piercing Weapon . | . . . Special Melee Weapon . | . . . Unidentified Prototypes 1 | . 1 . Parts Lost 7 | . 3 4 Power 1 | . . 1 Propulsion 3 | . 1 2 Utility . | . . . Weapon 3 | . 2 1 Highest Loss Streak 4 | . 2 4 To Critical Strikes 1 | . . 1 Average Slot Usage (%) 96 | . 96 98 Engine 13 | . 14 10 Leg 26 | . 27 21 Device 11 | . 7 22 Storage 13 | . 14 11 Protection 7 | . 6 10 Energy Gun 18 | . 21 10 Energy Cannon 2 | . . 10 Ballistic Gun 2 | . 3 . Peak Build Rating 12 | 6 10 12 Average Rating 8 | 4 8 11 On Entrance 5 | . 6 10 Naked Turns . | . . . Heaviest Build 24 | 14 18 24 Greatest Support 20 | 20 20 20 Greatest Overweight (x) 7 | 3 1 7 Average Overweight (x) . | . . 1 Largest Inventory Capacity 8 | 8 8 8 Average Capacity 7 | 7 8 8 Most Carried 8 | . 8 7 Average Carried 4 | . 4 5 Final Capacity 8 | 8 8 8 Final Carried 8 | . 8 6 Class Distribution -------------------- 100% | Mutant Dominant Class ---------------- Mutant | -10/Materials Mutant | -9/Materials Resources | -11 -10 -9 ----------- Run | Yrd Mat Mat Matter Collected 346 | 223 123 . Remotely . | . . . Salvage Created 422 | . 422 . Parts 21 | . 21 . Haulers Intercepted . | . . . Recyclers Shooed . | . . . Parts Field Recycled . | . . . Retrieved Matter . | . . . Parts Self-Destructed . | . . . Prevented . | . . . Kills | -11 -10 -9 ------- Run | Yrd Mat Mat Combat Hostiles Destroyed 10 | . 10 . Guns 9 | . 9 . AOE 1 | . 1 . Classes Destroyed 4 | . 4 . Operator 1 | . 1 . Watcher 3 | . 3 . Swarmer 3 | . 3 . Grunt 7 | . 7 . Best Kill Streak 6 | . 6 . Combat Bots Only 5 | . 5 . Max Kills in Single Turn 1 | . 1 . Gunslinging . | . . . Exploded 1 | . 1 . Melee . | . . . Uniques/NPCs Destroyed . | . . . Combat | -11 -10 -9 -------- Run | Yrd Mat Mat Hostile Shots Fired 145 | . 72 73 Missed 42 | . 17 25 Damage Taken 1244 | . 663 581 Core 366 | . 192 174 Absorbed by Shields . | . . . Redirected to Shielding 8 | . 8 . Regen/Repaired (Parts) 7 | . . 7 Core Remaining (%) 61 | 100 23 . Volleys Fired 37 | . 36 1 Largest 2 | . 2 2 Hottest 118 | . 100 118 Shots Fired 68 | . 66 2 Gun 67 | . 66 1 Cannon 1 | . . 1 Launcher . | . . . Special . | . . . Kinetic 6 | . 6 . Thermal 48 | . 46 2 Explosive . | . . . Electromagnetic 14 | . 14 . Robot Hit Streak 11 | . 9 11 Robot Miss Streak 3 | . 3 . Penetration Max . | . . . Secondary Targets 2 | . 2 . Max Gunslinging Chain 1 | . 1 . Shots Hit Robots 42 | . 40 2 Core Hits 24 | . 23 1 Critical Kills . | . . . Critical Parts Destroyed . | . . . Critical Strikes 5 | . 5 . Burn 5 | . 5 . Melee Attacks . | . . . Impact . | . . . Slashing . | . . . Piercing . | . . . Sneak Attacks . | . . . Combat Hostiles . | . . . Follow-up Attacks . | . . . Damage Inflicted 667 | . 626 41 Guns 559 | . 547 12 Cannons 21 | . . 21 Explosions 67 | . 67 . Melee . | . . . Ramming 20 | . 12 8 Kinetic 44 | . 44 . Thermal 488 | . 455 33 Explosive . | . . . Electromagnetic 115 | . 115 . Impact . | . . . Slashing . | . . . Piercing . | . . . Highest Corruption . | . . . Average Corruption . | . . . Corruption Purged . | . . . Corruption Blocked . | . . . Overload Shots . | . . . Overflow Damage 2 | . 2 . Projectiles . | . . . Explosions 2 | . 2 . Melee . | . . . Knockbacks . | . . . Impact . | . . . Kinetic . | . . . Secondary . | . . . Self-Inflicted Damage 32 | . 32 . Shots 1 | . 1 . Rammed . | . . . Targets Rammed 8 | . 5 3 Kicked 8 | . 5 3 Crushed . | . . . Highest Temperature 444 | . 444 39 Average Temperature 116 | . 118 27 Received Heat Transfer 471 | . 288 183 Effects 3 | . 3 . Shutdowns 1 | . 1 . Interference 2 | . 2 . Siege Activations . | . . . Robots Corrupted . | . . . Combat Hostiles . | . . . Parts Fried . | . . . Impact Corruptions . | . . . Robots Melted . | . . . Combat Hostiles . | . . . Parts Melted 6 | . 6 . Heat Transferred 1641 | . 1567 74 Parts Sabotaged . | . . . Parts Stolen . | . . . Parts Stripped . | . . . Power Chain Reactions 1 | . 1 . Alert | -11 -10 -9 ------- Run | Yrd Mat Mat Peak Influence 207 | . 207 35 Initial 35 | . . 35 Average 57 | . 68 34 Maximum Alert Level 1 | . 1 . Low Security (%) 93 | 100 91 100 Level 1 6 | . 8 . Level 2 . | . . . Level 3 . | . . . Level 4 . | . . . Level 5 . | . . . High Security . | . . . Max Security . | . . . Squads Dispatched 4 | . 3 1 Investigation 2 | . 1 1 Extermination . | . . . Reinforcement 2 | . 2 . Assault . | . . . Garrison . | . . . Intercept . | . . . Searches Triggered . | . . . Construction Impeded . | . . . Haulers Reinforced . | . . . Active Scanning Responses . | . . . Cargo Convoy Interrupts . | . . . Stealth | -11 -10 -9 --------- Run | Yrd Mat Mat Distress Signals 1 | . 1 . Communications Jammed . | . . . Distress Signals . | . . . Times Spotted 26 | . 17 9 Peak Tracking Total 7 | . 3 7 Tactical Retreats . | . . . Traps | -11 -10 -9 ------- Run | Yrd Mat Mat Traps Triggered 3 | . 2 1 Indirectly . | . . . Trap Hack Attempts . | . . . Triggered . | . . . Disarmed . | . . . Reprogrammed . | . . . Reused . | . . . Traps Extracted . | . . . Installed . | . . . Triggered . | . . . Machines | -11 -10 -9 ---------- Run | Yrd Mat Mat Machines Disabled 1 | . 1 . Max in Single Turn 1 | . 1 . Machines Repaired . | . . . Machines Dismantled . | . . . Machines Sabotaged . | . . . Overloaded Fab Kills . | . . . Hacking | -11 -10 -9 --------- Run | Yrd Mat Mat Machines Accessed 2 | . 1 1 Terminals . | . . . Fabricators . | . . . Repair Stations 2 | . 1 1 Recycling Units . | . . . Scanalyzers . | . . . Garrison Access . | . . . Total Hacks 6 | . 4 2 Successful 3 | . 1 2 Failed 3 | . 3 . Catastrophic . | . . . Database Lockouts . | . . . Manual . | . . . Terminals . | . . . Fabricators . | . . . Repair Stations 6 | . 4 2 Recycling Units . | . . . Scanalyzers . | . . . Garrison Access . | . . . Terminal Hacks . | . . . Fabricator Hacks . | . . . Repair Station Hacks 3 | . 1 2 Scan Component 2 | . 1 1 Repair 1 | . . 1 Recycling Unit Hacks . | . . . Scanalyzer . | . . . Garrison Access Hacks . | . . . Unauthorized Hacks . | . . . Terminals . | . . . Fabricators . | . . . Repair Stations . | . . . Recycling Units . | . . . Scanalyzers . | . . . Garrison Access . | . . . Data Cores Recovered . | . . . Used . | . . . Hacking Detections 1 | . 1 . Full Trace Events 1 | . 1 . Feedback Events . | . . . Feedback Blocked . | . . . Robot Schematics Acquired . | . . . Robots Built . | . . . Authchips . | . . . Time . | . . . Total Robot Build Rating . | . . . Part Schematics Acquired . | . . . Parts Built . | . . . Authchips . | . . . Time . | . . . Total Part Build Rating . | . . . Parts Repaired 1 | . . 1 Time 36 | . . 36 Parts Recycled . | . . . Recycled Matter . | . . . Retrieved Matter . | . . . Retrieved Components . | . . . Parts Scanalyzed . | . . . Part Schematics Acquired . | . . . Parts Damaged . | . . . Bothacking | -11 -10 -9 ------------ Run | Yrd Mat Mat Used RIF Installer . | . . . Robots Hacked . | . . . Non-combat . | . . . Combat . | . . . Robot Hacks Applied . | . . . Relay Couplers Released . | . . . Fabnet Peak Effective % . | . . . Robots Rewired . | . . . Allies Hacked . | . . . Hacks Repelled . | . . . Allies | -11 -10 -9 -------- Run | Yrd Mat Mat Total Allies . | . . . Largest Group . | . . . Highest-Rated Group . | . . . Highest-Rated Ally . | . . . Total Orders . | . . . Ally Attacks . | . . . Total Damage . | . . . Kills . | . . . Allies Corrupted . | . . . Allies Melted . | . . . Intel | -11 -10 -9 ------- Run | Yrd Mat Mat Robot Analysis Total . | . . . Derelict Logs Recovered . | . . . Drone Launches . | . . . Drone Recoveries . | . . . Exploration | -11 -10 -9 ------------- Run | Yrd Mat Mat Turns Passed 1530 | 72 1086 372 Spaces Moved 981 | 47 787 147 Core 11 | 9 . 2 Treads . | . . . Legs 970 | 38 787 145 Wheels . | . . . Hover . | . . . Flight . | . . . Fastest Speed 50 | 50 120 190 Average Speed 131 | 134 120 192 Slowest Speed 400 | 200 190 400 Overloaded Moves . | . . . Propulsion Burnouts . | . . . Robots Hopped . | . . . Cave-ins Triggered . | . . . Exploration Rate (%) 34 | 5 85 13 Regions Visited 2 Branch Regions . Pre-discovered Areas . | . . . Known Exits Taken . | . . . Unknown Exits Taken 2 | 1 1 . Scrap Searched . | . . . Spaces Dug . | . . . Terrain Destroyed 2 | . 2 . Melee . | . . . Projectile . | . . . AOE 2 | . 2 . Terrain Rammed . | . . . Walls Destroyed . | . . . Machines Disabled . | . . . Actions | -11 -10 -9 --------- Run | Yrd Mat Mat Total 1141 | 52 859 230 Wait 81 | . 7 74 Move 979 | 46 786 147 Hop . | . . . Pick Up 12 | . 11 1 Fast Attach 11 | 6 5 . Attach 2 | . . 2 Detach 1 | . 1 . Swap 5 | . 3 2 Drop 5 | . 5 . Fire 37 | . 36 1 Melee . | . . . Ram . | . . . Kick 8 | . 5 3 Crush . | . . . Escape Stasis . | . . . Rewire . | . . . Trap . | . . . Miscellaneous . | . . . Route ------- -11/Scrapyard -10/Materials (discovered 4 exits: *Mat x3 / [*Min]) -9/Materials History --------- Turn | Location | Event 19 | -11/Scrapyard | Discovered new exit (range 16) 73 | -11/Scrapyard | Entered Materials 226 | -10/Materials | Discovered new exit (range 8) 316 | -10/Materials | Build established: Mutant 503 | -10/Materials | Discovered new exit (range 4) 663 | -10/Materials | Discovered new exit (range 15) 701 | -10/Materials | Core integrity fell below 50% 741 | -10/Materials | Discovered new exit (range 15) 1159 | -10/Materials | Entered another Materials area 1159 | -9/Materials | Evolved 2 slots: Utility x2 1275 | -9/Materials | Repaired Broken Signal Interpreter? 1531 | -9/Materials | Self-destructed Last Messages --------------- 01300_ K-01 Serf collects debris. 01311_ Kicked M-13 Machinist. 01322_ Acquired Signal Interpreter. 01323_ Connecting with Repair Station... 01360_ K-01 Serf cleans the Terminal. 01425_ Triggered Alarm Trap. 01425_ An alarm sounds. 01425_ ALERT: Alarm triggered, dispatching investigation squad. 01426_ K-01 Serf cleans the Integration Channel. 01429_ U-05 Engineer lays Concrete. 01483_ M-13 Machinist repairs Y-45 Defender. 01485_ Kicked U-05 Engineer out of the way. 01500_ Critical hit (Burn: +37). 01520_ Aluminum Leg destroyed. 01522_ Critical hit (Destroy). 01522_ Aluminum Leg destroyed. 01527_ Hvy. Ion Engine destroyed. 01529_ Med. Laser destroyed. [Achievement: Back For More] Map ----- +----------------------------------------------------+ | | | ?????????????????????????????????????????????? | | ?????????????????????????????????????????????? | | ?????????????????????????????????????????????? | | ?????????????????????????????????????????????? | | ?????????????????????????????????????????????? | | ?????????????????????????????????????????????? | | ?????????????????????????????????????????????? | | ?????????????????????????????????????????????? | | ?????????????????????????###+#???????????????? | | ????????????????????????? +???????????????? | | ???????????????????+##??? ????????????????? | | ???????????????????? ### ????????????????? | | ???????????????????? Y ?????????????????? | | ????????????????????? ?????????????????? | | ?????????????????????? ?????????????###### | | ??????????????????????#s #?????????##### # | | ????????????########??# s #?????????# # # | | ????????????# ?# s#?????????# # # | | ????????????# ?#s #?????????# # # | | ???????????## # ########### / =[ # | | ???????????#? # # =] # | | ???????????????"" """ + # =[ # | | ???????????????"" """ # # # | | ???????????????"" """ # ############### # | | ??????????????? ?# @###########???###### | | ????????????########### u # #????????? | | ????????????# ] + + #????????? | | ????????????# # # """ #????????? | | ????????????# """ """ # # """ #????????? | | ????????????# """ """ # # """ #????????? | | ????????????# """ """ #k # " " #????????? | | ????????????# # # "R" #????????? | | ????????????# "T" # g # """ #????????? | | ????????????# # ###########????????? | | ????????????########+## #??????????????????? | | ???????????????????# m ###########????????? | | ???????????????????# Y# #????????? | | ???????????????????# # T #????????? | | ???????????????????# # """ #????????? | | ???????????????????# # """ ! #????????? | | ???????????????????# + """ #????????? | | ???????????????????# # #????????? | | ???????????????????#/## # #????????? | | ?????????????????? # # #????????? | | ????????????????? " # ###########????????? | | ??????????????? """ # #??????????????????? | | ??????????????# """ # ??????????????????? | | ??????????????# """ # ?????????????????? | | ??????????????+ ??"" # /????????????????? | +----------------------------------------------------+ Best States ------------- Heat Dissipation 38 Energy Generation 14 Energy Capacity 280 Matter Stores 300 Matter Capacity 300 Sight Range 16 Robot Scan Range 14 Terrain Scan Density 10 Armor Coverage 150 Utility Shielding 33 Evasion (%) 55 Item Schematics ----------------- None Robot Schematics ------------------ None Fabricated ------------ Nothing Alien Tech Used ----------------- None Achievements -------------- Back For More Challenges ------------ None Game ------ Seed blame! Manual? 1 Play Time 00:15:01 Cumulative 28.4 hours Start 2024.12.25 @ 08:35:55 End 2024.12.25 @ 08:49:32 Sessions 1 Manual Loads 0 Difficulty Rogue Special Mode None Game No. 50 Rogue 47 Adventurer 3 Explorer 0 Win Type - Total 0 Types 0/0/0/0/0/0/0/0/0 Lore% 9 Gallery% 21 Achievement% 17 Wizard Run 0 Options --------- Layout 1 ASCII 0 Keyboard 1 Movement Numpad Keybinds 0 Fullscreen 1 Font 24/Smallcaps Map View 50x35 Zoom Use 0% Tactical HUD 1 Map Filters NONE Filters NONE Steam 1 RUN: 06cb5454-8caf-4259-86fa-24300294b156